[Event "Charlotte Spring-A 2022"]
[Site "Charlotte"]
[Date "2022.03.17"]
[Round "2.3"]
[White "Korley, Kassa"]
[Black "Panjwani, Raja"]
[Result "1/2-1/2"]
[ECO "E18"]
[WhiteElo "2399"]
[BlackElo "2436"]
[Annotator "ChessBase"]
[PlyCount "75"]
[EventDate "2022.03.16"]
[EventType "tourn"]
[EventCountry "USA"]
[SourceTitle "playchess.com"]
[Source "ChessBase"]
[SourceQuality "1"]
[TimeControl "5400+30"]

1. d4 {[%emt 0:00:02]} Nf6 {[%emt 0:00:05]} 2. c4 {[%emt 0:00:06]} e6 {[%emt 0:00:08]} 3. Nf3 {[%emt 0:00:04]} b6 {[%emt 0:00:07]} 4. g3 {[%emt 0:00:11]} Bb7 {[%emt 0:00:09]} 5. Bg2 {[%emt 0:00:04]} Be7 {[%emt 0:00:07]} 6. O-O {[%emt 0:00:05]} O-O {[%emt 0:00:08]} 7. Nc3 {[%emt 0:00:32]} Ne4 {[%emt 0:00:10]} 8. Bd2 {[%emt 0:00:05]} f5 {[%emt 0:00:07]} 9. Qc2 {[%emt 0:08:33]} Bf6 {[%emt 0:02:27]} 10. Rad1 {[%emt 0:08:51]} d6 {[%emt 0:16:19]} 11. Ne1 {[%emt 0:05:14]} Nxc3 {[%emt 0:00:22]} 12. Bxc3 {[%emt 0:00:42]} Bxg2 {[%emt 0:00:25]} 13. Nxg2 {[%emt 0:00:05]} Nd7 {[%emt 0:10:13]} 14. Nf4 {[%emt 0:10:49]} Qe8 {[%emt 0:01:34]} 15. d5 {[%emt 0:08:06]} Bxc3 {[%emt 0:01:05]} 16. Qxc3 {[%emt 0:02:55]} Nc5 {[%emt 0:00:18]} 17. b4 {[%emt 0:00:40]} e5 {[%emt 0:00:56]} 18. bxc5 {[%emt 0:07:24]} exf4 {[%emt 0:02:04]} 19. cxd6 {[%emt 0:00:11]} cxd6 {[%emt 0:00:13]} 20. gxf4 {[%emt 0:16:11]} Qxe2 {[%emt 0:01:35]} 21. Rfe1 {[%emt 0:01:48]} Qh5 {[%emt 0:04:46]} 22. Rd3 {[%emt 0:01:49]} Rae8 {[%emt 0:06:15]} 23. Rxe8 {[%emt 0:03:37]} Rxe8 {[%emt 0:00:20]} 24. Re3 {[%emt 0:00:17]} Re4 {[%emt 0:05:27]} 25. Rxe4 {[%emt 0:00:13]} fxe4 {[%emt 0:00:05]} 26. Qe3 {[%emt 0:00:11]} Qe8 {[%emt 0:17:37]} 27. Kf1 {[%emt 0:01:14]} Kf8 {[%emt 0:00:55]} 28. Qh3 {[%emt 0:00:54]} h6 {[%emt 0:03:18]} 29. Qf5+ {[%emt 0:00:47]} Kg8 {[%emt 0:00:04]} 30. h4 {[%emt 0:03:06]} Kh8 {[%emt 0:05:54]} 31. h5 {[%emt 0:04:54]} e3 {[%emt 0:03:30]} 32. Qe6 {[%emt 0:01:00]} Qxh5 {[%emt 0:00:18]} 33. fxe3 {[%emt 0:00:07]} Qf3+ {[%emt 0:01:23]} 34. Ke1 {[%emt 0:00:04]} h5 {[%emt 0:01:46]} 35. Qc8+ {[%emt 0:01:09]} Kh7 {[%emt 0:00:04]} 36. Qf5+ {[%emt 0:00:03]} Kg8 {[%emt 0:00:33]} 37. Qe6+ {[%emt 0:00:11]} Kh7 {[%emt 0:00:16]} 38. Qf5+ {[%emt 0:00:03]} 1/2-1/2

[Event "Charlotte Spring-A 2022"]
[Site "Charlotte"]
[Date "2022.03.18"]
[Round "4.2"]
[White "Korley, Kassa"]
[Black "Guo, Arthur"]
[Result "0-1"]
[ECO "E04"]
[WhiteElo "2399"]
[BlackElo "2412"]
[Annotator "ChessBase"]
[PlyCount "72"]
[EventDate "2022.03.16"]
[EventType "tourn"]
[EventCountry "USA"]
[SourceTitle "playchess.com"]
[Source "ChessBase"]
[SourceQuality "1"]
[TimeControl "5400+30"]

1. d4 {[%emt 0:01:39]} Nf6 {[%emt 0:00:22]} 2. c4 {[%emt 0:00:07]} e6 {[%emt 0:00:05]} 3. Nf3 {[%emt 0:00:02]} d5 {[%emt 0:00:41]} 4. g3 {[%emt 0:00:04]} dxc4 {[%emt 0:00:09]} 5. Bg2 {[%emt 0:00:13]} c6 {[%emt 0:00:21]} 6. O-O {[%emt 0:01:07]} b5 {[%emt 0:00:35]} 7. Ne5 {[%emt 0:23:42]} Bb7 {[%emt 0:00:26]} 8. b3 {[%emt 0:00:25]} cxb3 {[%emt 0:00:37]} 9. axb3 {[%emt 0:00:40]} Nd5 {[%emt 0:02:00]} 10. e4 {[%emt 0:06:41]} Nf6 {[%emt 0:02:58]} 11. Bb2 {[%emt 0:07:21]} Be7 {[%emt 0:07:16]} 12. Qc2 {[%emt 0:03:11]} O-O {[%emt 0:01:28]} 13. Nd2 {[%emt 0:00:28]} Qb6 {[%emt 0:01:46]} 14. Rfc1 {[%emt 0:05:58]} Nfd7 {[%emt 0:12:03]} 15. Nd3 {[%emt 0:04:53]} a5 {[%emt 0:10:54]} 16. e5 {[%emt 0:11:35]} Rd8 {[%emt 0:05:31]} 17. Ne4 {[%emt 0:02:31]} Na6 {[%emt 0:01:39]} 18. Ndc5 {[%emt 0:00:43]} Nb4 {[%emt 0:09:02]} 19. Qe2 {[%emt 0:00:03]} Qc7 {[%emt 0:01:14]} 20. h4 {[%emt 0:04:08]} Bxc5 {[%emt 0:06:47]} 21. dxc5 {[%emt 0:12:31]} Nxe5 {[%emt 0:00:23]} 22. f4 {[%emt 0:04:52]} Ned3 {[%emt 0:02:20]} 23. Nf6+ {[%emt 0:01:53]} gxf6 {[%emt 0:02:25]} 24. Bxf6 {[%emt 0:00:07]} Nxc1 {[%emt 0:02:38]} 25. Rxc1 {[%emt 0:00:16]} Nd5 {[%emt 0:05:42]} 26. Bxd5 {[%emt 0:04:53]} Rxd5 {[%emt 0:10:57]} 27. Qg4+ {[%emt 0:00:06]} Kf8 {[%emt 0:00:01]} 28. Qg7+ {[%emt 0:00:05]} Ke8 {[%emt 0:00:01]} 29. Re1 {[%emt 0:04:02]} Kd7 {[%emt 0:00:25]} 30. Qxh7 {[%emt 0:00:05]} Rf8 {[%emt 0:02:01]} 31. h5 {[%emt 0:00:40]} Kc8 {[%emt 0:01:28]} 32. h6 {[%emt 0:00:13]} Rf5 {[%emt 0:03:10]} 33. Qg7 {[%emt 0:01:11]} Rxf6 {[%emt 0:00:02]} 34. Qxf6 {[%emt 0:00:33]} Qd8 {[%emt 0:00:20]} 35. Qa1 {[%emt 0:00:30]} Rh8 {[%emt 0:01:08]} 36. Rd1 {[%emt 0:00:27]} Qf8 {[%emt 0:00:49]} 0-1

[Event "Charlotte Spring-A 2022"]
[Site "Charlotte"]
[Date "2022.03.18"]
[Round "4.3"]
[White "Lee, Michael"]
[Black "Ostrovskiy, Aleksandr"]
[Result "0-1"]
[ECO "E11"]
[WhiteElo "2379"]
[BlackElo "2409"]
[Annotator "ChessBase"]
[PlyCount "100"]
[EventDate "2022.03.16"]
[EventType "tourn"]
[EventCountry "USA"]
[SourceTitle "playchess.com"]
[Source "ChessBase"]
[SourceQuality "1"]
[TimeControl "5400+30"]

1. d4 {[%emt 0:01:16]} Nf6 {[%emt 0:02:22]} 2. c4 {[%emt 0:00:14]} e6 {[%emt 0:00:09]} 3. Nf3 {[%emt 0:00:13]} Bb4+ {[%emt 0:01:00]} 4. Bd2 {[%emt 0:00:24]} Qe7 {[%emt 0:01:20]} 5. Qc2 {[%emt 0:09:36]} Bxd2+ {[%emt 0:04:20]} 6. Nbxd2 {[%emt 0:00:07]} d6 {[%emt 0:00:19]} 7. e4 {[%emt 0:08:59]} e5 {[%emt 0:01:00]} 8. d5 {[%emt 0:00:06]} a5 {[%emt 0:07:19]} 9. c5 {[%emt 0:10:11]} dxc5 {[%emt 0:12:47]} 10. Nc4 {[%emt 0:08:16]} O-O {[%emt 0:02:38]} 11. a4 {[%emt 0:06:42]} Nbd7 {[%emt 0:08:31]} 12. Bd3 {[%emt 0:11:37]} b6 {[%emt 0:18:02]} 13. Ne3 {[%emt 0:02:40]} Ne8 {[%emt 0:02:55]} 14. h4 {[%emt 0:04:01]} Nd6 {[%emt 0:02:00]} 15. g4 {[%emt 0:07:35]} Nf6 {[%emt 0:11:56]} 16. Rg1 {[%emt 0:03:17]} c4 {[%emt 0:01:46]} 17. Bxc4 {[%emt 0:01:36]} Nfxe4 {[%emt 0:16:26]} 18. Bd3 {[%emt 0:00:24]} f5 {[%emt 0:01:27]} 19. gxf5 {[%emt 0:01:12]} Nc5 {[%emt 0:00:19]} 20. Bc4 {[%emt 0:06:55]} Kh8 {[%emt 0:00:05]} 21. Ng5 {[%emt 0:00:08]} Nxc4 {[%emt 0:00:57]} 22. Qxc4 {[%emt 0:00:32]} Ba6 {[%emt 0:02:29]} 23. Qc3 {[%emt 0:01:59]} Nd3+ {[%emt 0:00:38]} 24. Kd2 {[%emt 0:00:06]} Nc5 {[%emt 0:01:04]} 25. Rg4 {[%emt 0:00:22]} Rad8 {[%emt 0:00:28]} 26. Ne4 {[%emt 0:04:52]} Nxe4+ {[%emt 0:00:32]} 27. Rxe4 {[%emt 0:00:02]} Bb7 {[%emt 0:00:33]} 28. Qxe5 {[%emt 0:08:25]} Qf7 {[%emt 0:00:01]} 29. Rd4 {[%emt 0:00:29]} Rfe8 {[%emt 0:00:11]} 30. Qf4 {[%emt 0:00:53]} Bxd5 {[%emt 0:00:09]} 31. Ke1 {[%emt 0:00:27]} c5 {[%emt 0:00:32]} 32. Rd2 {[%emt 0:00:06]} Bb3 {[%emt 0:01:00]} 33. Rxd8 {[%emt 0:00:41]} Rxd8 {[%emt 0:00:01]} 34. Kf1 {[%emt 0:00:37]} Qf6 {[%emt 0:00:54]} 35. Qg5 {[%emt 0:01:34]} Rd2 {[%emt 0:00:26]} 36. Ng4 {[%emt 0:00:54]} Qxg5 {[%emt 0:01:15]} 37. hxg5 {[%emt 0:00:02]} Rd4 {[%emt 0:00:35]} 38. Ne5 {[%emt 0:00:46]} Bxa4 {[%emt 0:00:28]} 39. Kg2 {[%emt 0:00:43]} Rf4 {[%emt 0:00:32]} 40. Nf7+ {[%emt 0:00:45]} Kg8 {[%emt 0:00:01]} 41. Kg3 {[%emt 0:00:13]} Rxf5 {[%emt 0:00:50]} 42. Nd6 {[%emt 0:00:06]} Rxg5+ {[%emt 0:00:31]} 43. Kf4 {[%emt 0:00:05]} Rg6 {[%emt 0:00:29]} 44. Nf5 {[%emt 0:00:08]} Rf6 {[%emt 0:00:04]} 45. Ke5 {[%emt 0:00:30]} Bd7 {[%emt 0:00:21]} 46. Ne7+ {[%emt 0:00:14]} Kf7 {[%emt 0:00:06]} 47. Nd5 {[%emt 0:00:05]} Re6+ {[%emt 0:01:19]} 48. Kf4 {[%emt 0:00:05]} g5+ {[%emt 0:00:20]} 49. Kg3 {[%emt 0:00:19]} h5 {[%emt 0:00:11]} 50. f4 {[%emt 0:00:24]} h4+ {[%emt 0:00:24]} 0-1

[Event "Charlotte Spring-A 2022"]
[Site "Charlotte"]
[Date "2022.03.19"]
[Round "6.2"]
[White "Lee, Michael"]
[Black "Liang, Jason"]
[Result "1/2-1/2"]
[ECO "D31"]
[WhiteElo "2379"]
[BlackElo "2419"]
[Annotator "NA"]
[PlyCount "60"]
[EventDate "2022.03.16"]
[EventType "tourn"]
[EventCountry "USA"]
[SourceTitle "playchess.com"]
[Source "ChessBase"]
[SourceQuality "1"]
[TimeControl "5400+30"]

1. d4 {[%emt 0:01:47]} d5 {[%emt 0:00:11]} 2. c4 {[%emt 0:00:06]} e6 {[%emt 0:00:06]} 3. Nc3 {[%emt 0:00:05]} a6 {[%emt 0:00:20]} 4. cxd5 {[%emt 0:00:46]} exd5 {[%emt 0:00:07]} 5. Nf3 {[%emt 0:00:07]} c6 {[%emt 0:00:09]} 6. Bf4 {[%emt 0:00:39]} Bd6 {[%emt 0:00:13]} 7. Bxd6 {[%emt 0:00:46]} Qxd6 {[%emt 0:00:07]} 8. e4 {[%emt 0:00:17]} dxe4 {[%emt 0:00:29]} 9. Nxe4 {[%emt 0:00:04]} Qe7 {[%emt 0:00:21]} 10. Qe2 {[%emt 0:00:05]} Nd7 {[%emt 0:00:29]} 11. Nd6+ {[%emt 0:01:10]} Kf8 {[%emt 0:00:20]} 12. Nc4 {[%emt 0:01:31]} Ngf6 {[%emt 0:01:57]} 13. O-O-O {[%emt 0:02:21]} Qxe2 {[%emt 0:24:10]} 14. Bxe2 {[%emt 0:00:05]} Ne4 {[%emt 0:01:04]} 15. Rhf1 {[%emt 0:00:36]} Ndf6 {[%emt 0:01:17]} 16. Nfe5 {[%emt 0:12:34]} Be6 $11 {[%emt 0:02:21]} 17. f3 {[%emt 0:06:52]} Bxc4 {[%emt 0:00:17]} 18. Nxc4 {[%emt 0:06:59]} Ng5 {[%emt 0:00:14]} 19. Na5 {[%emt 0:00:09]} Rb8 {[%emt 0:05:01]} 20. Bc4 {[%emt 0:00:32]} Nd5 {[%emt 0:01:17]} 21. Rfe1 {[%emt 0:07:47]} Ne6 {[%emt 0:02:04]} 22. Bxd5 {[%emt 0:14:26]} cxd5 {[%emt 0:00:09]} 23. Re5 {[%emt 0:00:14]} b6 {[%emt 0:01:08]} 24. Nb3 {[%emt 0:00:05]} Rd8 {[%emt 0:00:51]} 25. Na1 {[%emt 0:00:33]} Ke7 {[%emt 0:03:42]} 26. Nc2 {[%emt 0:01:01]} f6 {[%emt 0:01:05]} 27. Re3 {[%emt 0:02:35]} Kd6 {[%emt 0:00:28]} 28. Rde1 {[%emt 0:00:08]} Rhe8 {[%emt 0:00:59]} 29. Kd2 {[%emt 0:01:07]} Rc8 {[%emt 0:01:04]} 30. b3 {[%emt 0:00:36]} Nc7 {[%emt 0:02:47]} 1/2-1/2

[Event "Charlotte Spring-A 2022"]
[Site "Charlotte"]
[Date "2022.03.19"]
[Round "6.3"]
[White "Bodek, Michael"]
[Black "Guo, Arthur"]
[Result "1-0"]
[ECO "C54"]
[WhiteElo "2418"]
[BlackElo "2412"]
[Annotator "NA"]
[PlyCount "75"]
[EventDate "2022.03.16"]
[EventType "tourn"]
[EventCountry "USA"]
[SourceTitle "playchess.com"]
[Source "ChessBase"]
[SourceQuality "1"]
[TimeControl "5400+30"]

1. e4 {[%emt 0:00:03]} e5 {[%emt 0:00:26]} 2. Nf3 {[%emt 0:00:05]} Nc6 {[%emt 0:00:06]} 3. Bc4 {[%emt 0:00:04]} Bc5 {[%emt 0:00:22]} 4. c3 {[%emt 0:00:25]} Nf6 {[%emt 0:00:05]} 5. d3 {[%emt 0:00:05]} d6 {[%emt 0:00:06]} 6. O-O {[%emt 0:01:02]} h6 {[%emt 0:00:22]} 7. Bb3 {[%emt 0:00:54]} a6 {[%emt 0:00:46]} 8. Re1 {[%emt 0:01:22]} Ba7 {[%emt 0:00:31]} 9. Nbd2 {[%emt 0:07:32]} g5 {[%emt 0:01:52]} 10. Nf1 {[%emt 0:09:23]} g4 {[%emt 0:00:13]} 11. N3d2 {[%emt 0:02:35]} Nh5 {[%emt 0:00:47]} 12. Nc4 {[%emt 0:07:15]} Qf6 {[%emt 0:00:33]} 13. Be3 {[%emt 0:02:38]} Nf4 {[%emt 0:00:32]} 14. Bxa7 {[%emt 0:04:20]} Nxa7 {[%emt 0:00:05]} 15. Nce3 {[%emt 0:03:41]} h5 $14 {[%emt 0:02:00]} 16. Nd5 {[%emt 0:16:02]} Nxd5 {[%emt 0:00:54]} 17. exd5 {[%emt 0:03:06]} Bd7 {[%emt 0:00:20]} 18. d4 {[%emt 0:01:38]} O-O-O {[%emt 0:00:13]} 19. dxe5 {[%emt 0:01:04]} dxe5 {[%emt 0:00:07]} 20. Qe2 {[%emt 0:01:53]} Rhe8 {[%emt 0:05:35]} 21. c4 {[%emt 0:02:35]} Kb8 {[%emt 0:13:36]} 22. Rac1 {[%emt 0:06:24]} c5 {[%emt 0:01:39]} 23. Nd2 {[%emt 0:03:13]} Qe7 {[%emt 0:14:22]} 24. Ne4 {[%emt 0:01:47]} b6 {[%emt 0:05:34]} 25. Nc3 {[%emt 0:01:03]} f5 {[%emt 0:01:31]} 26. Ba4 {[%emt 0:03:24]} Nc8 {[%emt 0:02:29]} 27. Rb1 {[%emt 0:02:50]} Ka7 {[%emt 0:05:00]} 28. Qc2 {[%emt 0:04:20]} Nd6 {[%emt 0:05:37]} 29. Bxd7 {[%emt 0:01:37]} Rxd7 {[%emt 0:02:10]} 30. Qa4 {[%emt 0:02:01]} Rc7 {[%emt 0:03:00]} 31. b4 {[%emt 0:03:51]} Qd7 {[%emt 0:16:13]} 32. bxc5 {[%emt 0:01:35]} Qxa4 {[%emt 0:00:02]} 33. cxb6+ {[%emt 0:00:20]} Ka8 {[%emt 0:00:00]} 34. Nxa4 {[%emt 0:00:27]} Rxc4 {[%emt 0:00:05]} 35. b7+ {[%emt 0:00:45]} Ka7 {[%emt 0:04:08]} 36. Nb6 {[%emt 0:07:11]} Rb8 {[%emt 0:07:02]} 37. Nxc4 {[%emt 0:00:00]} Nxc4 {[%emt 0:10:37]} 38. Rb4 {[%emt 0:00:00]} 1-0